Cogmind - Beta 13 @@@ ROGUE MODE // 2024.04.02 @ 14:55:27 Player: Crafthog Result: Destroyed by G-34 Mercenary with Small Laser Performance ------------- Evolutions (0) 0 Regions Visited (2) 400 Robots Destroyed (12) 60 Value Destroyed (211) 211 Prototype IDs (0) 0 Alien Tech Used (0) 0 Bonus (0) 0 TOTAL SCORE: 671 Bonus ------- None Cogmind --------- Core Integrity 0/250 Matter 253/300 Energy 99/100 System Corruption 0% Temperature Cool (6) Movement Core (100) Ox1 Location -10/Mines Parts ------- > --- POWER (1) -------- (None) > --- PROPULSION (2) --- (None) > --- UTILITY (2) ------ Small Storage Unit > --- WEAPON (2) ------- Light Assault Rifle > --- INVENTORY (8) ---- Ion Engine Hover Unit Utility Shielding Small Laser Light Assault Rifle Peak State ------------ > --- POWER ------------ Fission Core > --- PROPULSION ------- Aluminum Leg Aluminum Leg > --- UTILITY ---------- Small Storage Unit Improved Terrain Scanner > --- WEAPON ----------- Assault Rifle > --- INVENTORY -------- Ion Engine Hover Unit Utility Shielding Small Laser [Rating: 12] Favorites ----------- Power Ion Engine Engine Ion Engine Power Core Fission Core Propulsion Aluminum Leg Leg Aluminum Leg Flight Unit Flight Unit Utility Small Storage Unit Device Improved Terrain Scanner Storage Small Storage Unit Protection Utility Shielding Weapon Assault Rifle Energy Gun Medium Laser Ballistic Gun Assault Rifle Build | -11 -10 -10 ------- Run | Yrd Mat Min Slots Evolved . | . . . Power . | . . . Propulsion . | . . . Utility . | . . . Weapon . | . . . Parts Attached 20 | 7 . 13 Power 3 | 1 . 2 Engine 2 | 1 . 1 Core 1 | . . 1 Reactor . | . . . Propulsion 6 | 2 . 4 Treads . | . . . Leg 4 | 2 . 2 Wheel . | . . . Hover . | . . . Flight 2 | . . 2 Utility 5 | 1 . 4 Device 2 | . . 2 Storage 2 | 1 . 1 Processor . | . . . Hackware . | . . . Protection 1 | . . 1 Artifact . | . . . Weapon 6 | 3 . 3 Energy Gun 2 | 1 . 1 Energy Cannon . | . . . Ballistic Gun 4 | 2 . 2 Ballistic Cannon . | . . . Launcher . | . . . Special Weapon . | . . . Impact Weapon . | . . . Slashing Weapon . | . . . Piercing Weapon . | . . . Special Melee Weapon . | . . . Unidentified Prototypes . | . . . Parts Lost 11 | . . 11 Power 3 | . . 3 Propulsion 3 | . . 3 Utility 2 | . . 2 Weapon 3 | . . 3 Highest Loss Streak 4 | . . 4 To Critical Strikes . | . . . Average Slot Usage (%) 83 | . 85 82 Engine 8 | . 14 7 Core 4 | . . 4 Leg 23 | . 28 22 Device 8 | . . 10 Storage 13 | . 14 13 Energy Gun 6 | . 14 5 Ballistic Gun 15 | . 14 15 Naked Turns . | . . . Heaviest Build 18 | 14 14 18 Greatest Support 20 | 20 20 20 Greatest Overweight (x) 3 | . . 3 Average Overweight (x) . | . . . Largest Inventory Capacity 8 | 8 8 8 Average Capacity 7 | 6 8 7 Most Carried 6 | 5 5 6 Average Carried 3 | . . 4 Final Capacity 8 | 8 8 8 Final Carried 5 | . 5 5 Class Distribution -------------------- 83% | Mutant 16% | Scavenger-Mutant Dominant Class ---------------- Mutant | -10/Materials Mutant | -10/Mines Resources | -11 -10 -10 ----------- Run | Yrd Mat Min Matter Collected 447 | 255 69 123 Remotely . | . . . Salvage Created 306 | 74 91 141 Parts 20 | 1 4 15 Haulers Intercepted . | . . . Recyclers Shooed . | . . . Parts Field Recycled . | . . . Retrieved Matter . | . . . Parts Self-Destructed . | . . . Prevented . | . . . Kills | -11 -10 -10 ------- Run | Yrd Mat Min Combat Hostiles Destroyed 8 | . 2 6 Guns 8 | . 2 6 Classes Destroyed 7 | 1 2 4 Tunneler 4 | . . 4 Recycler 1 | 1 . . Operator 1 | . 1 . Swarmer 3 | . . 3 Grunt 2 | . 2 . Demolisher 1 | . . 1 Assembled 2 | . . 2 Best Kill Streak 2 | 1 2 2 Combat Bots Only 2 | . 2 2 Max Kills in Single Turn 1 | 1 1 1 Gunslinging . | . . . Exploded . | . . . Melee . | . . . Uniques/NPCs Destroyed . | . . . Combat | -11 -10 -10 -------- Run | Yrd Mat Min Hostile Shots Fired 130 | . 16 114 Missed 39 | . 5 34 Damage Taken 1124 | . 123 1001 Core 259 | . 35 224 Absorbed by Shields . | . . . Core Remaining (%) 100 | 100 . . Volleys Fired 53 | 5 13 35 Largest 2 | 2 2 2 Hottest 70 | 70 70 70 Shots Fired 85 | 10 26 49 Gun 85 | 10 26 49 Cannon . | . . . Launcher . | . . . Special . | . . . Kinetic 51 | 5 13 33 Thermal 34 | 5 13 16 Explosive . | . . . Electromagnetic . | . . . Robot Hit Streak 10 | 4 5 10 Robot Miss Streak 6 | 2 2 6 Penetration Max . | . . . Secondary Targets . | . . . Shots Hit Robots 43 | 6 15 22 Core Hits 21 | 2 6 13 Critical Kills . | . . . Critical Parts Destroyed . | . . . Critical Strikes 1 | . 1 . Burn 1 | . 1 . Melee Attacks . | . . . Impact . | . . . Slashing . | . . . Piercing . | . . . Sneak Attacks . | . . . Combat Hostiles . | . . . Follow-up Attacks . | . . . Damage Inflicted 569 | 77 187 305 Guns 554 | 77 187 290 Cannons . | . . . Explosions . | . . . Melee . | . . . Ramming 15 | . . 15 Kinetic 255 | 39 62 154 Thermal 299 | 38 125 136 Explosive . | . . . Electromagnetic . | . . . Impact . | . . . Slashing . | . . . Piercing . | . . . Highest Corruption . | . . . Average Corruption . | . . . Corruption Purged . | . . . Corruption Blocked . | . . . Overload Shots . | . . . Overflow Damage . | . . . Projectiles . | . . . Explosions . | . . . Melee . | . . . Knockbacks . | . . . Impact . | . . . Kinetic . | . . . Secondary . | . . . Self-Inflicted Damage . | . . . Shots . | . . . Rammed . | . . . Targets Rammed 5 | . . 5 Kicked 5 | . . 5 Crushed . | . . . Highest Temperature 75 | 36 75 54 Average Temperature 23 | 16 28 20 Received Heat Transfer 370 | . 66 304 Siege Activations . | . . . Robots Corrupted . | . . . Combat Hostiles . | . . . Parts Fried . | . . . Impact Corruptions . | . . . Robots Melted . | . . . Combat Hostiles . | . . . Parts Melted 1 | . 1 . Heat Transferred 938 | 111 444 383 Parts Sabotaged . | . . . Parts Stolen . | . . . Parts Stripped . | . . . Power Chain Reactions . | . . . Alert | -11 -10 -10 ------- Run | Yrd Mat Min Peak Influence 63 | 5 63 59 Initial 24 | . 3 24 Average 20 | 1 19 23 Maximum Alert Level . | . . . Low Security (%) 100 | 100 100 100 Level 1 . | . . . Level 2 . | . . . Level 3 . | . . . Level 4 . | . . . Level 5 . | . . . High Security . | . . . Max Security . | . . . Squads Dispatched 2 | . 1 1 Investigation 1 | . . 1 Extermination . | . . . Reinforcement 1 | . 1 . Assault . | . . . Garrison . | . . . Intercept . | . . . Searches Triggered . | . . . Construction Impeded . | . . . Haulers Reinforced . | . . . Active Scanning Responses . | . . . Cargo Convoy Interrupts . | . . . Stealth | -11 -10 -10 --------- Run | Yrd Mat Min Distress Signals . | . . . Communications Jammed . | . . . Distress Signals . | . . . Times Spotted 20 | . 4 16 Peak Tracking Total 3 | . 2 3 Tactical Retreats 1 | . . 1 Traps | -11 -10 -10 ------- Run | Yrd Mat Min Traps Triggered . | . . . Indirectly . | . . . Trap Hack Attempts . | . . . Triggered . | . . . Disarmed . | . . . Reprogrammed . | . . . Reused . | . . . Traps Extracted . | . . . Installed . | . . . Triggered . | . . . Machines | -11 -10 -10 ---------- Run | Yrd Mat Min Machines Disabled 1 | . . 1 Max in Single Turn 1 | . . 1 Machines Repaired . | . . . Machines Dismantled . | . . . Machines Sabotaged . | . . . Overloaded Fab Kills . | . . . Hacking | -11 -10 -10 --------- Run | Yrd Mat Min Machines Accessed 5 | . 4 1 Terminals 5 | . 4 1 Fabricators . | . . . Repair Stations . | . . . Recycling Units . | . . . Scanalyzers . | . . . Garrison Access . | . . . Total Hacks 17 | . 15 2 Successful 5 | . 5 . Failed 12 | . 10 2 Catastrophic 6 | . 5 1 Database Lockouts . | . . . Manual 14 | . 12 2 Terminals 17 | . 15 2 Fabricators . | . . . Repair Stations . | . . . Recycling Units . | . . . Scanalyzers . | . . . Garrison Access . | . . . Terminal Hacks 5 | . 5 . Record 1 | . 1 . Level Access Points 1 | . 1 . Branch Access Points 1 | . 1 . Emergency Access Points 1 | . 1 . Unreport Threat 1 | . 1 . Fabricator Hacks . | . . . Repair Station Hacks . | . . . Recycling Unit Hacks . | . . . Scanalyzer . | . . . Garrison Access Hacks . | . . . Unauthorized Hacks . | . . . Terminals . | . . . Fabricators . | . . . Repair Stations . | . . . Recycling Units . | . . . Scanalyzers . | . . . Garrison Access . | . . . Data Cores Recovered . | . . . Used . | . . . Hacking Detections 5 | . 4 1 Full Trace Events 3 | . 2 1 Feedback Events . | . . . Feedback Blocked . | . . . Robot Schematics Acquired . | . . . Robots Built . | . . . Authchips . | . . . Time . | . . . Total Robot Build Rating . | . . . Part Schematics Acquired . | . . . Parts Built . | . . . Authchips . | . . . Time . | . . . Total Part Build Rating . | . . . Parts Repaired . | . . . Time . | . . . Parts Recycled . | . . . Recycled Matter . | . . . Retrieved Matter . | . . . Retrieved Components . | . . . Parts Scanalyzed . | . . . Part Schematics Acquired . | . . . Parts Damaged . | . . . Bothacking | -11 -10 -10 ------------ Run | Yrd Mat Min Used RIF Installer . | . . . Robots Hacked . | . . . Non-combat . | . . . Combat . | . . . Robot Hacks Applied . | . . . Relay Couplers Released . | . . . Fabnet Peak Effective % . | . . . Robots Rewired . | . . . Allies Hacked . | . . . Hacks Repelled . | . . . Allies | -11 -10 -10 -------- Run | Yrd Mat Min Total Allies . | . . . Largest Group . | . . . Highest-Rated Group . | . . . Highest-Rated Ally . | . . . Total Orders . | . . . Ally Attacks . | . . . Total Damage . | . . . Kills . | . . . Allies Corrupted . | . . . Allies Melted . | . . . Intel | -11 -10 -10 ------- Run | Yrd Mat Min Robot Analysis Total . | . . . Derelict Logs Recovered 1 | . . 1 Drone Launches . | . . . Drone Recoveries . | . . . Exploration | -11 -10 -10 ------------- Run | Yrd Mat Min Turns Passed 1183 | 88 190 905 Spaces Moved 794 | 65 116 613 Core 64 | 28 . 36 Treads . | . . . Legs 725 | 37 116 572 Wheels . | . . . Hover . | . . . Flight 5 | . . 5 Fastest Speed 37 | 50 120 37 Average Speed 124 | 89 120 128 Slowest Speed 200 | 120 120 200 Overloaded Moves . | . . . Propulsion Burnouts . | . . . Robots Hopped . | . . . Cave-ins Triggered . | . . . Exploration Rate (%) 38 | 5 28 83 Regions Visited 2 Branch Regions 1 Pre-discovered Areas . | . . . Known Exits Taken 1 | . 1 . Unknown Exits Taken 1 | 1 . . Scrap Searched . | . . . Spaces Dug . | . . . Terrain Destroyed . | . . . Melee . | . . . Projectile . | . . . AOE . | . . . Terrain Rammed . | . . . Walls Destroyed . | . . . Machines Disabled . | . . . Actions | -11 -10 -10 --------- Run | Yrd Mat Min Total 906 | 84 141 681 Wait 10 | 2 8 . Move 792 | 64 115 613 Hop . | . . . Pick Up 22 | 6 5 11 Fast Attach . | . . . Attach 16 | 6 . 10 Detach . | . . . Swap 4 | 1 . 3 Drop 4 | . . 4 Fire 53 | 5 13 35 Melee . | . . . Ram . | . . . Kick 5 | . . 5 Crush . | . . . Escape Stasis . | . . . Rewire . | . . . Trap . | . . . Miscellaneous . | . . . Route ------- -11/Scrapyard -10/Materials (discovered 5 exits: Mat x3 / *Min x2) -10/Mines (discovered 1 exit: [Sub]) History --------- Turn | Location | Event 15 | -11/Scrapyard | Discovered new exit (range 16) 89 | -11/Scrapyard | Entered Materials 169 | -10/Materials | Identified exit to Materials 183 | -10/Materials | Discovered new exit (range 7) 194 | -10/Materials | Identified exit to Mines 279 | -10/Materials | Entered Mines 318 | -10/Mines | Build established: Mutant 406 | -10/Mines | Discovered new exit (range 8) 510 | -10/Mines | Assembled infested the area 515 | -10/Mines | Assisted by a Guerilla fighting off Assembled 609 | -10/Mines | Core integrity fell below 50% 640 | -10/Mines | Lost 4 parts (1p1n1u1w) 717 | -10/Mines | Learned Materials stockpile data 991 | -10/Mines | Lost 3 parts (1p1n1w) 1113 | -10/Mines | Core integrity fell below 20% 1184 | -10/Mines | Destroyed by G-34 Mercenary with Small Laser Last Messages --------------- S-10 Pest destroyed. Acquired Lgt. Assault Rifle. S-10 Pest destroyed. Acquired 17 matter. Acquired Lgt. Ion Engine. Acquired 1 matter. Acquired Flight Unit. Dropped Sml. Storage Unit. Dropped Flight Unit. Acquired Lgt. Assault Rifle. Dropped Lgt. Assault Rifle. Acquired Sml. Storage Unit. Acquired Lgt. Assault Rifle. K-01 Serf collects debris. Kicked K-01 Serf. Aluminum Leg destroyed. K-01 Serf collects debris. Lgt. Assault Rifle destroyed. Imp. Terrain Scanner destroyed. Lgt. Ion Engine destroyed. Map ----- +----------------------------------------------------+ | ????????#??????# ?## # # #???#?????????? | | ???????????##### ### # # ##?????????????# | | ?????????### #### #?#?#?????????? | | ?????????# # #?????????????? | | ????????# #????# ??????? | | ???????# % ##??? " ??????? | | ?????????# %% #### ?????? | | ?????????## #?????? | | ??????????# #??????? | | ???#??????## ##% ##??????? | | ?? #???????####??## ## ##???????? | | ? #??????????????# ### #####???????? | | # #??????????????# ##? #???????????? | | #??????????????## ### #???????????? | | #???????????????### #???????????? | | #?????????????????## ### #???????????? | | ###?????????????????## #?# ##?#????????? | | ##???????????#???????# ##?# #??????????#? | | #????????????????????# #??# ##??#????#??? | | #???????????????????## #??# #???????????? | | #??????????#????????### ##?# #???????????? | | ????????????????????# #??# #???????????? | | ??#????????????????# ##?# ##?????????## | | ??????????????????# ##?# ###########?# | | ## #??????############ ### #?? | | ### ##??#???# gg @ ############ #?? | | #??###???????# ########## #?????????# #?? | | ??????###???## ##???#???# #????####?# #?? | | ?#???????????# #???#???## ##??## ### #?? | | ??#?#?######## ######### #### ## #?? | | ?????## ## #?? | | ??????# = #?? | | ?#????# ############# ! ## ##? | | ??????# #??????##???## #### ### #?? | | ??????# ##?#???????#?### ##??####?# #?? | | ??????# #??????????????### ##???????# #?? | | ??????# #???#???#????????## #?#????# #?? | | ?????## ##???#???#??????#?# #?????? #?? | | ??#### ##???????????#???# #?????# #?? | | ?## #??????????#????? ##???#?## #?? | | ## ##??????????????#? ##?????#?## ###? | | ## ##???????? ??????? ##?????#???##???? | | # ##??#??????????????##??#?????????????? | | ##???????????????????????????#????????? | | ##?#????????????????????#??????????????? | | # ###???#????????????????????????????##???? | | #####?????#?#?????#?????????????????????????? | | ????????#??????????????????????????????#????? | | | | | +----------------------------------------------------+ Best States ------------- Heat Dissipation 25 Energy Generation 18 Energy Capacity 310 Matter Stores 300 Matter Capacity 300 Sight Range 16 Terrain Scan Range 16 Terrain Scan Density 10 Utility Shielding 33 Evasion (%) 62 Item Schematics ----------------- None Robot Schematics ------------------ None Fabricated ------------ Nothing Alien Tech Used ----------------- None Achievements -------------- Everything Is Under Control Challenges ------------ None Game ------ Seed SwarmWeightPenetrator Manual? 0 Play Time 00:14:31 Cumulative 2.2 hours Start 2024.04.02 @ 00:50:41 End 2024.04.02 @ 14:55:27 Sessions 3 Manual Loads 0 Difficulty Rogue Special Mode None Game No. 6 Rogue 6 Adventurer 0 Explorer 0 Win Type - Total 0 Types 0/0/0/0/0/0/0/0/0 Lore% 3 Gallery% 5 Achievement% 7 Wizard Run 0 Options --------- Layout 1 ASCII 0 Keyboard 0 Movement Arrows Keybinds 0 Fullscreen 1 Font 24/Smallcaps Map View 76x35 Zoom Use 0% Tactical HUD 0 Map Filters NONE Filters NONE Steam 1 RUN: 98ef516a-714a-4463-9df3-028f6ab6cd4c